fUSD/lending_fUSD_20250505
["ID","MTS","AMOUNT","RATE_DAILY","PERIOD"]
[359902074,1746408647079,-450.0,0.00019984,2]
[359902076,1746408647089,-470.0,0.00019984,2]
[359902078,1746408647100,-450.0,0.00019984,2]
[359902080,1746408647110,-450.0,0.00019984,2]
[359902082,1746408647119,-515.92498897,0.00019984,2]
[359902084,1746408647128,-450.0,0.00019984,2]
[359902086,1746408647137,-450.0,0.00019984,2]
[359902088,1746408647148,-450.0,0.00019984,2]
[359902090,1746408647157,-477.91796585,0.00019984,2]
[359902092,1746408647167,-330.90570179,0.00019984,2]
[359902094,1746408647179,-121.11114324,0.00019984,2]
[359902100,1746408647232,-578.52639742,0.00019895,2]
[359902102,1746408647242,-228.80986524,0.00019895,2]
[359902104,1746408647252,-123.1451033,0.00019984,2]
[359902107,1746408647263,-255.74375346,0.00019984,2]
[359902109,1746408647273,-450.0,0.00019984,2]
[359902111,1746408647283,-470.0,0.00019984,2]
[359902113,1746408647293,-569.73564454,0.00019984,2]
[359902115,1746408647303,-450.0,0.00019984,2]
[359902117,1746408647312,-353.57949436,0.00019984,2]
[359902128,1746408647416,-274.3142601,0.00019894,2]
[359902131,1746408647428,-231.7450599,0.00019894,2]
[359902133,1746408647437,-450.0,0.00019895,2]
[359902134,1746408647447,-462.41376801,0.00019895,2]
[359902136,1746408647457,-519.85214966,0.00019895,2]
[359902138,1746408647467,-798.0,0.00019976,2]
[359902141,1746408647477,-96.42050564,0.00019984,2]
[359902142,1746408647487,-450.0,0.00019984,2]
[359902144,1746408647496,-450.0,0.00019984,2]
[359902147,1746408647506,-450.0,0.00019984,2]
[359902148,1746408647515,-450.0,0.00019984,2]
[359902151,1746408647525,-450.0,0.00019984,2]
[359902152,1746408647535,-450.0,0.00019984,2]
[359902154,1746408647544,-450.0,0.00019984,2]
[359902156,1746408647555,-450.0,0.00019984,2]
[359902158,1746408647564,-450.0,0.00019984,2]
[359902160,1746408647574,-450.0,0.00019984,2]
[359902162,1746408647583,-500.0,0.00019984,2]
[359902164,1746408647592,-450.0,0.00019984,2]
[359902166,1746408647602,-635.4,0.00019984,2]
[359902168,1746408647611,-470.0,0.00019984,2]
[359902170,1746408647621,-111.32362498,0.00019984,2]
[359902186,1746408647762,-358.67637502,0.00019984,2]
[359902188,1746408647771,-450.0,0.00019984,2]
[359902190,1746408647781,-153.12,0.00019984,2]
[359902192,1746408647790,-510.0,0.00019984,2]
[359902194,1746408647800,-450.0,0.00019984,2]
[359902196,1746408647809,-500.0,0.00019984,2]
[359902198,1746408647819,-450.0,0.00019984,2]
[359902200,1746408647828,-450.0,0.00019984,2]
[359902202,1746408647837,-174.56867057,0.00019984,2]
[359902204,1746408647847,-450.0,0.00019984,2]
[359902206,1746408647856,-450.0,0.00019984,2]
[359902208,1746408647865,-450.0,0.00019984,2]
[359902210,1746408647875,-450.0,0.00019984,2]
[359902212,1746408647884,-470.0,0.00019984,2]
[359902214,1746408647894,-450.0,0.00019984,2]
[359902216,1746408647903,-167.81026485,0.00019984,2]
[359902218,1746408647914,-450.0,0.00019984,2]
[359902219,1746408647923,-385.7,0.00019984,2]
[359902222,1746408647933,-239.97,0.00019984,2]
[359902223,1746408647942,-450.0,0.00019984,2]
[359902226,1746408647952,-470.0,0.00019984,2]
[359902227,1746408647961,-450.0,0.00019984,2]
[359902229,1746408647970,-470.0,0.00019984,2]
[359902231,1746408647980,-450.0,0.00019984,2]
[359902234,1746408647990,-450.0,0.00019984,2]
[359902236,1746408648000,-286.55432236,0.00019984,2]
[359902237,1746408648010,-381.37,0.00019984,2]
[359902239,1746408648019,-450.0,0.00019984,2]
[359902242,1746408648028,-383.69,0.00019984,2]
[359902243,1746408648038,-500.0,0.00019984,2]
[359902246,1746408648048,-450.0,0.00019984,2]
[359902248,1746408648057,-450.0,0.00019984,2]
[359902249,1746408648067,-450.0,0.00019984,2]
[359902252,1746408648076,-529.46,0.00019984,2]
[359902254,1746408648086,-17463.45,0.00019984,2]
[359902256,1746408648095,-450.0,0.00019984,2]
[359902257,1746408648108,-194.25,0.00019984,2]
[359902259,1746408648117,-800.31,0.00019984,2]
[359902261,1746408648126,-450.0,0.00019984,2]
[359902263,1746408648135,-203.39,0.00019984,2]
[359902265,1746408648145,-2478.47,0.00019984,2]
[359902267,1746408648155,-450.0,0.00019984,2]
[359902269,1746408648165,-450.0,0.00019984,2]
[359902271,1746408648174,-970.69,0.00019984,2]
[359902273,1746408648184,-450.0,0.00019984,2]
[359902275,1746408648194,-2025.21,0.00019984,2]
[359902277,1746408648204,-268.55653813,0.00019984,2]
[359902279,1746408648213,-450.0,0.00019984,2]
[359902281,1746408648223,-450.0,0.00019984,2]
[359902283,1746408648232,-450.0,0.00019984,2]
[359902285,1746408648242,-492.33845156,0.00019984,2]
[359902287,1746408648251,-797.56,0.00019984,2]
[359902289,1746408648262,-450.0,0.00019984,2]
[359902291,1746408648272,-450.0,0.00019984,2]
[359902293,1746408648281,-450.0,0.00019984,2]
[359902295,1746408648291,-450.0,0.00019984,2]
[359902297,1746408648300,-450.0,0.00019984,2]
[359902299,1746408648309,-450.0,0.00019984,2]
[359902301,1746408648319,-450.0,0.00019984,2]
[359902303,1746408648328,-450.0,0.00019984,2]
[359902305,1746408648338,-450.0,0.00019984,2]
[359902307,1746408648346,-450.0,0.00019984,2]
[359902309,1746408648355,-450.0,0.00019984,2]
[359902311,1746408648365,-467.02,0.00019984,2]
[359902313,1746408648374,-450.0,0.00019984,2]
[359902315,1746408648383,-677.16,0.00019984,2]
[359902317,1746408648393,-450.0,0.00019984,2]
[359902319,1746408648402,-450.0,0.00019984,2]
[359902321,1746408648411,-450.0,0.00019984,2]
[359902323,1746408648421,-150.78008226,0.00019984,2]
[359902325,1746408648430,-341.93737402,0.00019984,2]
[359902327,1746408648440,-450.0,0.00019984,2]
[359902329,1746408648450,-470.0,0.00019984,2]
[359902331,1746408648458,-450.0,0.00019984,2]
[359902333,1746408648468,-503.61,0.00019984,2]
[359902335,1746408648477,-470.0,0.00019984,2]
[359902337,1746408648486,-450.0,0.00019984,2]
[359902339,1746408648496,-450.0,0.00019984,2]
[359902341,1746408648505,-450.0,0.00019984,2]
[359902343,1746408648514,-536.3689238,0.00019984,2]
[359902345,1746408648523,-559.70142664,0.00019984,2]
[359902347,1746408648532,-566.43942476,0.00019984,2]
[359902349,1746408648542,-465.56943637,0.00019984,2]
[359902351,1746408648551,-503.81933972,0.00019984,2]
[359902352,1746408648560,-503.45614553,0.00019984,2]
[359902354,1746408648570,-482.0525045,0.00019984,2]
[359902357,1746408648580,-557.94831437,0.00019984,2]
[359902359,1746408648590,-15200.5207011,0.00019985,2]
[359902360,1746408648599,-329.3645187,0.00019985,2]
[359902362,1746408648609,-450.0,0.00019985,2]
[359902365,1746408648619,-1975.28353289,0.00019985,2]
[359902366,1746408648628,-1451.0,0.00019986,2]
[359902368,1746408648637,-915.0,0.00019986,2]
[359902370,1746408648647,-581.0,0.00019986,2]
[359902372,1746408648656,-550.0,0.00019986,2]
[359902374,1746408648665,-12512.5286003,0.00019986,2]
[359902376,1746408648675,-9824.5364995,0.00019986,2]
[359902378,1746408648684,-7136.5443987,0.00019986,2]
[359902380,1746408648693,-4448.552298,0.00019986,2]
[359902382,1746408648703,-1760.5601972,0.00019986,2]
[359902384,1746408648713,-352.1773779,0.00019986,2]
[359902386,1746408648723,-374.9902371,0.00019986,2]
[359902389,1746408648732,-397.8030963,0.00019986,2]
[359902391,1746408648742,-420.6159555,0.00019986,2]
[359902393,1746408648752,-443.4288147,0.00019986,2]
[359902394,1746408648761,-450.0,0.00019989,2]
[359902396,1746408648770,-450.0,0.00019989,2]
[359902398,1746408648780,-450.0,0.00019989,2]
[359902400,1746408648789,-732.56,0.00019989,2]
[359902402,1746408648799,-450.0,0.00019989,2]
[359902404,1746408648809,-450.0,0.00019989,2]
[359902406,1746408648819,-450.0,0.00019989,2]
[359902408,1746408648828,-450.0,0.00019989,2]
[359902410,1746408648838,-450.0,0.00019989,2]
[359902412,1746408648847,-450.0,0.00019989,2]
[359902414,1746408648857,-450.0,0.00019989,2]
[359902416,1746408648866,-450.0,0.00019989,2]
[359902418,1746408648876,-450.0,0.00019989,2]
[359902420,1746408648886,-450.0,0.00019989,2]
[359902422,1746408648895,-450.0,0.00019989,2]
[359902424,1746408648905,-450.0,0.00019989,2]
[359902426,1746408648914,-450.0,0.00019989,2]
[359902428,1746408648924,-450.0,0.00019989,2]
[359902430,1746408648934,-450.0,0.00019989,2]
[359902432,1746408648944,-450.0,0.00019989,2]
[359902434,1746408648953,-188.84194376,0.00019989,2]
[359902436,1746408648963,-477.77,0.00019989,2]
[359902437,1746408648972,-450.0,0.00019989,2]
[359902439,1746408648982,-207.66,0.00019989,2]
[359902441,1746408648990,-450.0,0.00019989,2]
[359902442,1746408649000,-450.0,0.00019989,2]
[359902444,1746408649009,-450.0,0.00019989,2]
[359902446,1746408649019,-261.2745033,0.00019989,2]
[359902448,1746408649029,-450.0,0.00019989,2]
[359902450,1746408649039,-450.0,0.00019989,2]
[359902452,1746408649049,-450.0,0.00019989,2]
[359902454,1746408649059,-450.0,0.00019989,2]
[359902456,1746408649069,-450.0,0.00019989,2]
[359902459,1746408649085,-450.0,0.00019989,2]
[359902462,1746408649100,-281.84,0.00019989,2]
[359902464,1746408649114,-450.0,0.00019989,2]
[359902466,1746408649126,-400.0,0.00019989,2]
[359902468,1746408649140,-450.0,0.00019989,2]
[359902471,1746408649154,-500.0,0.00019989,2]
[359902473,1746408649168,-450.0,0.00019989,2]
[359902475,1746408649182,-450.0,0.00019989,2]
[359902478,1746408649201,-470.0,0.00019989,2]
[359902480,1746408649214,-213.43301287,0.00019989,2]
[359902482,1746408649225,-500.0,0.00019989,2]
[359902484,1746408649237,-450.0,0.00019989,2]
[359902487,1746408649252,-17463.45,0.00019989,2]
[359902489,1746408649264,-800.31,0.00019989,2]
[359902491,1746408649278,-2478.47,0.00019989,2]
[359902493,1746408649290,-450.0,0.00019989,2]
[359902496,1746408649304,-970.69,0.00019989,2]
[359902498,1746408649318,-2025.21,0.00019989,2]
[359902500,1746408649331,-450.0,0.00019989,2]
[359902503,1746408649345,-797.56,0.00019989,2]
[359902505,1746408649358,-533.91,0.00019989,2]
[359902507,1746408649372,-417.08,0.00019989,2]
[359902510,1746408649386,-450.0,0.00019989,2]
[359902512,1746408649398,-450.0,0.00019989,2]
[359902514,1746408649412,-450.0,0.00019989,2]
[359902516,1746408649425,-450.0,0.00019989,2]
[359902518,1746408649439,-450.0,0.00019989,2]
[359902519,1746408649452,-19438.42968492,0.0001999,2]
[359902520,1746408649465,-450.0,0.00019996,2]
[359902521,1746408649479,-450.0,0.00019996,2]
[359902522,1746408649491,-500.0,0.00019996,2]
[359902524,1746408649503,-450.0,0.00019996,2]
[359902526,1746408649516,-497.35067165,0.00019996,2]
[359902528,1746408649526,-151.0,0.00019996,2]
[359902531,1746408649537,-450.0,0.00019996,2]
[359902533,1746408649548,-489.9574106,0.00019996,2]
[359902535,1746408649563,-500.0,0.00019996,2]
[359902537,1746408649577,-635.4,0.00019996,2]
[359902539,1746408649586,-470.0,0.00019996,2]
[359902541,1746408649596,-278.21801305,0.00019996,2]
[359902543,1746408649607,-470.0,0.00019996,2]
[359902545,1746408649619,-470.0,0.00019996,2]
[359902548,1746408649631,-450.0,0.00019996,2]
[359902550,1746408649645,-450.0,0.00019996,2]
[359902552,1746408649657,-450.0,0.00019996,2]
[359902554,1746408649668,-450.0,0.00019996,2]
[359902557,1746408649679,-1141.89,0.00019996,2]
[359902559,1746408649690,-450.0,0.00019996,2]
[359902561,1746408649702,-450.0,0.00019996,2]
[359902563,1746408649713,-450.0,0.00019996,2]
[359902564,1746408649724,-450.0,0.00019996,2]
[359902565,1746408649736,-195.9288184,0.00019996,2]
[359902566,1746408649747,-450.0,0.00019996,2]
[359902568,1746408649759,-270.42858274,0.00019996,2]
[359902569,1746408649772,-450.0,0.00019996,2]
[359902570,1746408649784,-1931.39,0.00019996,2]
[359902571,1746408649796,-450.0,0.00019996,2]
[359902572,1746408649807,-450.0,0.00019996,2]
[359902573,1746408649819,-450.0,0.00019996,2]
[359902575,1746408649830,-450.0,0.00019996,2]
[359902577,1746408649840,-450.0,0.00019996,2]
[359902579,1746408649852,-677.16,0.00019996,2]
[359902580,1746408649863,-424.41018147,0.00019996,2]
[359902581,1746408649875,-450.0,0.00019996,2]
[359902582,1746408649887,-10152.76,0.00019996,2]
[359902583,1746408649899,-1001.48,0.00019996,2]
[359902584,1746408649910,-827.2,0.00019996,2]
[359902585,1746408649921,-483.34,0.00019996,2]
[359902586,1746408649932,-450.0,0.00019996,2]
[359902587,1746408649944,-753.28,0.00019996,2]
[359902588,1746408649956,-450.0,0.00019996,2]
[359902589,1746408649966,-450.0,0.00019996,2]
[359902590,1746408649978,-450.0,0.00019996,2]
[359902591,1746408649991,-160.37654744,0.00019996,2]
[359902592,1746408650003,-687.61,0.00019996,2]
[359902593,1746408650015,-450.0,0.00019996,2]
[359902594,1746408650028,-843.95,0.00019996,2]
[359902595,1746408650040,-450.0,0.00019996,2]
[359902596,1746408650052,-500.0,0.00019997,2]
[359902597,1746408650062,-151.0,0.00019997,2]
[359902598,1746408650074,-280.48663342,0.00019997,2]
[359902599,1746408650086,-450.0,0.00019997,2]
[359902600,1746408650098,-450.0,0.00019997,2]
[359902601,1746408650112,-500.0,0.00019997,2]
[359902602,1746408650124,-470.0,0.00019997,2]
[359902603,1746408650136,-450.0,0.00019997,2]
[359902604,1746408650147,-490.0,0.00019997,2]
[359902605,1746408650159,-490.0,0.00019997,2]
[359902606,1746408650170,-450.0,0.00019997,2]
[359902607,1746408650182,-450.0,0.00019997,2]
[359902608,1746408650194,-732.56,0.00019997,2]
[359902609,1746408650206,-450.0,0.00019997,2]
[359902610,1746408650217,-450.0,0.00019997,2]
[359902611,1746408650230,-450.0,0.00019997,2]
[359902612,1746408650245,-450.0,0.00019997,2]
[359902613,1746408650257,-479.43,0.00019997,2]
[359902614,1746408650270,-489.49,0.00019997,2]
[359902615,1746408650282,-204.26203507,0.00019997,2]
[359902616,1746408650295,-450.0,0.00019997,2]
[359902617,1746408650307,-510.0,0.00019997,2]
[359902618,1746408650318,-591.32632704,0.00019997,2]
[359902619,1746408650330,-450.0,0.00019997,2]
[359902620,1746408650341,-450.0,0.00019997,2]
[359902621,1746408650354,-258.97,0.00019997,2]
[359902622,1746408650367,-450.0,0.00019997,2]
[359902623,1746408650376,-450.0,0.00019997,2]
[359902624,1746408650385,-151.0,0.00019997,2]
[359902625,1746408650395,-151.0,0.00019997,2]
[359902626,1746408650404,-151.0,0.00019997,2]
[359902627,1746408650413,-450.0,0.00019997,2]
[359902628,1746408650423,-151.0,0.00019997,2]
[359902629,1746408650435,-151.0,0.00019997,2]
[359902630,1746408650444,-153.404569,0.00019997,2]
[359902631,1746408650455,-272.513214,0.00019997,2]
[359902632,1746408650464,-151.0,0.00019997,2]
[359902633,1746408650474,-151.0,0.00019997,2]
[359902634,1746408650483,-151.0,0.00019997,2]
[359902635,1746408650492,-154.836575,0.00019997,2]
[359902636,1746408650502,-151.0,0.00019997,2]
[359902637,1746408650511,-151.0,0.00019997,2]
[359902638,1746408650520,-152.347355,0.00019997,2]
[359902639,1746408650530,-151.0,0.00019997,2]
[359902640,1746408650540,-151.0,0.00019997,2]
[359902641,1746408650549,-151.0,0.00019997,2]
[359902642,1746408650559,-151.0,0.00019997,2]
[359902643,1746408650568,-186.21126689,0.00019997,2]
[359902644,1746408650578,-151.0,0.00019997,2]
[359902645,1746408650588,-635.4,0.00019997,2]
[359902646,1746408650598,-450.0,0.00019997,2]
[359902647,1746408650608,-151.0,0.00019997,2]
[359902648,1746408650618,-500.0,0.00019997,2]
[359902649,1746408650627,-151.0,0.00019997,2]
[359902650,1746408650637,-510.0,0.00019997,2]
[359902651,1746408650853,-151.0,0.00019997,2]
[359902652,1746408650872,-373.74,0.00019997,2]
[359902653,1746408650885,-151.0,0.00019997,2]
[359902654,1746408650895,-450.0,0.00019997,2]
[359902655,1746408650906,-151.0,0.00019997,2]
[359902656,1746408650915,-394.71,0.00019997,2]
[359902657,1746408650925,-500.0,0.00019997,2]
[359902658,1746408650935,-450.0,0.00019997,2]
[359902659,1746408650945,-151.0,0.00019997,2]
[359902660,1746408650956,-17463.45,0.00019997,2]
[359902661,1746408650967,-450.0,0.00019997,2]
[359902662,1746408650978,-800.31,0.00019997,2]
[359902663,1746408650989,-450.0,0.00019997,2]
[359902664,1746408651001,-2478.47,0.00019997,2]
[359902665,1746408651011,-450.0,0.00019997,2]
[359902666,1746408651021,-1141.89,0.00019997,2]
[359902667,1746408651031,-151.0,0.00019997,2]
[359902668,1746408651040,-970.69,0.00019997,2]
[359902669,1746408651049,-2025.21,0.00019997,2]
[359902670,1746408651058,-450.0,0.00019997,2]
[359902671,1746408651068,-450.0,0.00019997,2]
[359902672,1746408651080,-450.0,0.00019997,2]
[359902673,1746408651089,-450.0,0.00019997,2]
[359902674,1746408651100,-151.0,0.00019997,2]
[359902675,1746408651112,-797.56,0.00019997,2]
[359902676,1746408651122,-450.0,0.00019997,2]
[359902677,1746408651131,-151.0,0.00019997,2]
[359902678,1746408651141,-237.260429,0.00019997,2]
[359902679,1746408651151,-450.0,0.00019997,2]
[359902680,1746408651160,-151.0,0.00019997,2]
[359902681,1746408651170,-266.0292331,0.00019997,2]
[359902682,1746408651179,-151.0,0.00019997,2]
[359902683,1746408651188,-1931.39,0.00019997,2]
[359902684,1746408651198,-450.0,0.00019997,2]
[359902685,1746408651207,-450.0,0.00019997,2]
[359902686,1746408651216,-450.0,0.00019997,2]
[359902687,1746408651224,-450.0,0.00019997,2]
[359902688,1746408651234,-156.23553,0.00019997,2]
[359902689,1746408651244,-151.0,0.00019997,2]
[359902690,1746408651253,-151.0,0.00019997,2]
[359902691,1746408651262,-151.0,0.00019997,2]
[359902692,1746408651271,-450.0,0.00019997,2]
[359902693,1746408651281,-677.16,0.00019997,2]
[359902694,1746408651291,-450.0,0.00019997,2]
[359902695,1746408651301,-151.0,0.00019997,2]
[359902696,1746408651310,-270.0,0.00019997,2]
[359902697,1746408651319,-450.0,0.00019997,2]
[359902698,1746408651329,-151.0,0.00019997,2]
[359902699,1746408651339,-151.0,0.00019997,2]
[359902700,1746408651348,-151.0,0.00019997,2]
[359902701,1746408651358,-151.0,0.00019997,2]
[359902702,1746408651368,-450.0,0.00019997,2]
[359902703,1746408651378,-10152.76,0.00019997,2]
[359902704,1746408651390,-151.0,0.00019997,2]
[359902705,1746408651400,-1001.48,0.00019997,2]
[359902706,1746408651409,-450.0,0.00019997,2]
[359902707,1746408651419,-827.2,0.00019997,2]
[359902708,1746408651430,-195.723554,0.00019997,2]
[359902709,1746408651440,-195.723554,0.00019997,2]
[359902710,1746408651450,-151.0,0.00019997,2]
[359902711,1746408651461,-151.0,0.00019997,2]
[359902712,1746408651471,-151.0,0.00019997,2]
[359902713,1746408651481,-483.34,0.00019997,2]
[359902714,1746408651490,-161.14064,0.00019997,2]
[359902715,1746408651499,-450.0,0.00019997,2]
[359902716,1746408651509,-753.28,0.00019997,2]
[359902717,1746408651518,-188.73458,0.00019997,2]
[359902718,1746408651528,-151.0,0.00019997,2]
[359902719,1746408651538,-450.0,0.00019997,2]
[359902720,1746408651547,-151.0,0.00019997,2]
[359902721,1746408651557,-450.0,0.00019997,2]
[359902722,1746408651566,-151.0,0.00019997,2]
[359902723,1746408651576,-450.0,0.00019997,2]
[359902724,1746408651585,-217.775685,0.00019997,2]
[359902725,1746408651594,-153.422974,0.00019997,2]
[359902726,1746408651603,-450.0,0.00019997,2]
[359902727,1746408651614,-151.0,0.00019997,2]
[359902728,1746408651623,-450.0,0.00019997,2]
[359902729,1746408651633,-450.0,0.00019997,2]
[359902730,1746408651643,-687.61,0.00019997,2]
[359902731,1746408651653,-177.20605,0.00019997,2]
[359902732,1746408651663,-450.0,0.00019997,2]
[359902733,1746408651673,-843.95,0.00019997,2]
[359902734,1746408651682,-151.0,0.00019997,2]
[359902735,1746408651691,-450.0,0.00019997,2]
[359902736,1746408651700,-151.0,0.00019997,2]
[359902737,1746408651710,-9544.93856963,0.00019998,2]
[359902738,1746408651719,-889.0,0.00019998,2]
[359902739,1746408651728,-598.18372447,0.00019998,2]
[359902740,1746408651737,-168.2925888,0.00019998,2]
[359902741,1746408651747,-450.0,0.00019998,2]
[359902742,1746408651756,-450.0,0.00019998,2]
[359902743,1746408651766,-450.0,0.00019998,2]
[359902744,1746408651775,-403.89,0.00019998,2]
[359902745,1746408651784,-450.0,0.00019998,2]
[359902746,1746408651794,-450.0,0.00019998,2]
[359902747,1746408651804,-450.0,0.00019998,2]
[359902748,1746408651813,-450.0,0.00019998,2]
[359902749,1746408651823,-500.0,0.00019998,2]
[359902750,1746408651833,-500.0,0.00019998,2]
[359902751,1746408651842,-500.0,0.00019998,2]
[359902752,1746408651852,-500.0,0.00019998,2]
[359902753,1746408651862,-178.58121549,0.00019998,2]
[359902754,1746408651871,-450.0,0.00019998,2]
[359902755,1746408651880,-450.0,0.00019998,2]
[359902756,1746408651889,-450.0,0.00019998,2]
[359902757,1746408651899,-450.0,0.00019998,2]
[359902758,1746408651908,-450.0,0.00019998,2]
[359902759,1746408651917,-450.0,0.00019998,2]
[359902760,1746408651926,-450.0,0.00019998,2]
[359902761,1746408651936,-450.0,0.00019998,2]
[359902762,1746408651945,-156.48,0.00019998,2]
[359902763,1746408651953,-732.56,0.00019998,2]
[359902764,1746408651963,-732.56,0.00019998,2]
[359902765,1746408651972,-732.56,0.00019998,2]
[359902766,1746408651981,-732.56,0.00019998,2]
[359902767,1746408651990,-732.56,0.00019998,2]
[359902768,1746408652003,-450.0,0.00019998,2]
[359902769,1746408652013,-450.0,0.00019998,2]
[359902770,1746408652023,-450.0,0.00019998,2]
[359902771,1746408652033,-450.0,0.00019998,2]
[359902772,1746408652044,-450.0,0.00019998,2]
[359902773,1746408652054,-450.0,0.00019998,2]
[359902774,1746408652063,-450.0,0.00019998,2]
[359902775,1746408652074,-450.0,0.00019998,2]
[359902776,1746408652084,-450.0,0.00019998,2]
[359902777,1746408652093,-151.0,0.00019998,2]
[359902778,1746408652104,-151.0,0.00019998,2]
[359902779,1746408652114,-450.0,0.00019998,2]
[359902780,1746408652123,-450.0,0.00019998,2]
[359902781,1746408652133,-240.87570618,0.00019998,2]
[359902782,1746408652142,-479.43,0.00019998,2]
[359902783,1746408652152,-479.43,0.00019998,2]
[359902784,1746408652162,-479.43,0.00019998,2]
[359902785,1746408652171,-151.0,0.00019998,2]
[359902786,1746408652180,-479.43,0.00019998,2]
[359902787,1746408652190,-212.86,0.00019998,2]
[359902788,1746408652199,-503.08,0.00019998,2]
[359902789,1746408652209,-151.0,0.00019998,2]
[359902790,1746408652218,-450.0,0.00019998,2]
[359902791,1746408652228,-450.0,0.00019998,2]
[359902792,1746408652237,-450.0,0.00019998,2]
[359902793,1746408652246,-450.0,0.00019998,2]
[359902794,1746408652255,-151.0,0.00019998,2]
[359902795,1746408652265,-151.0,0.00019998,2]
[359902796,1746408652276,-151.0,0.00019998,2]
[359902797,1746408652287,-151.0,0.00019998,2]
[359902798,1746408652296,-151.0,0.00019998,2]
[359902799,1746408652307,-151.0,0.00019998,2]
[359902800,1746408652315,-281.97,0.00019998,2]
[359902801,1746408652326,-151.0,0.00019998,2]
[359902802,1746408652335,-151.0,0.00019998,2]
[359902803,1746408652345,-151.0,0.00019998,2]
[359902804,1746408652355,-635.4,0.00019998,2]
[359902805,1746408652364,-635.4,0.00019998,2]
[359902806,1746408652375,-635.4,0.00019998,2]
[359902807,1746408652384,-635.4,0.00019998,2]
[359902808,1746408652394,-450.0,0.00019998,2]
[359902809,1746408652403,-450.0,0.00019998,2]
[359902810,1746408652413,-450.0,0.00019998,2]
[359902811,1746408652423,-450.0,0.00019998,2]
[359902812,1746408652432,-515.31383177,0.00019998,2]
[359902813,1746408652442,-450.0,0.00019998,2]
[359902814,1746408652451,-450.0,0.00019998,2]
[359902815,1746408652461,-450.0,0.00019998,2]
[359902816,1746408652470,-450.0,0.00019998,2]
[359902817,1746408652480,-450.0,0.00019998,2]
[359902818,1746408652489,-450.0,0.00019998,2]
[359902819,1746408652499,-151.0,0.00019998,2]
[359902820,1746408652509,-500.0,0.00019998,2]
[359902821,1746408652518,-500.0,0.00019998,2]
[359902822,1746408652527,-500.0,0.00019998,2]
[359902823,1746408652537,-450.0,0.00019998,2]
[359902824,1746408652546,-500.0,0.00019998,2]
[359902825,1746408652556,-450.0,0.00019998,2]
[359902826,1746408652565,-500.0,0.00019998,2]
[359902827,1746408652574,-450.0,0.00019998,2]
[359902828,1746408652583,-450.0,0.00019998,2]
[359902829,1746408652592,-450.0,0.00019998,2]
[359902830,1746408652602,-17463.45,0.00019998,2]
[359902831,1746408652611,-17463.45,0.00019998,2]
[359902832,1746408652622,-17463.45,0.00019998,2]
[359902833,1746408652631,-17463.45,0.00019998,2]
[359902834,1746408652641,-17463.45,0.00019998,2]
[359902835,1746408652650,-553.60201603,0.00019998,2]
[359902836,1746408652660,-500.0,0.00019998,2]
[359902837,1746408652670,-500.0,0.00019998,2]